[Event "SixDays One Year GM-B 2023"]
[Site "Budapest"]
[Date "2023.09.18"]
[Round "1.1"]
[White "Xiao, Tong"]
[Black "Grover, Sahaj"]
[Result "1-0"]
[ECO "C70"]
[WhiteElo "2452"]
[BlackElo "2488"]
[Annotator "ChessBase"]
[PlyCount "153"]
[EventDate "2023.09.18"]
[EventType "tourn"]
[EventCountry "HUN"]
[SourceTitle "playchess.com"]
[Source "ChessBase"]
[SourceQuality "1"]
[TimeControl "5400+30"]

1. e4 {[%emt 0:00:02]} e5 {[%emt 0:01:34]} 2. Nf3 {[%emt 0:00:22]} Nc6 {[%emt 0:00:07]} 3. Bb5 {[%emt 0:00:18]} a6 {[%emt 0:00:07]} 4. Ba4 {[%emt 0:00:05]} Bc5 {[%emt 0:00:04]} 5. O-O {[%emt 0:06:30]} d6 {[%emt 0:00:30]} 6. c3 {[%emt 0:00:09]} Ba7 {[%emt 0:00:26]} 7. Re1 {[%emt 0:02:43]} Nge7 {[%emt 0:00:27]} 8. h3 {[%emt 0:04:26]} O-O {[%emt 0:08:07]} 9. d4 {[%emt 0:04:05]} Bd7 {[%emt 0:10:01]} 10. Bb3 {[%emt 0:07:11]} Ng6 {[%emt 0:00:54]} 11. Bg5 {[%emt 0:02:39]} Qe8 {[%emt 0:02:07]} 12. Be3 {[%emt 0:03:14]} Na5 {[%emt 0:10:58]} 13. Bc2 {[%emt 0:00:24]} c5 {[%emt 0:03:10]} 14. d5 {[%emt 0:12:18]} Nc4 {[%emt 0:06:28]} 15. Bc1 {[%emt 0:00:08]} b5 {[%emt 0:00:06]} 16. a4 {[%emt 0:02:01]} Nb6 {[%emt 0:07:13]} 17. a5 {[%emt 0:12:48]} Nc8 {[%emt 0:00:09]} 18. Nbd2 {[%emt 0:00:07]} c4 {[%emt 0:04:21]} 19. Nf1 {[%emt 0:02:53]} Nce7 {[%emt 0:01:57]} 20. Be3 {[%emt 0:10:25]} Qc8 {[%emt 0:07:38]} 21. Ng3 {[%emt 0:02:14]} Bxe3 {[%emt 0:02:13]} 22. fxe3 {[%emt 0:00:25]} Qc5 {[%emt 0:00:15]} 23. Qd2 {[%emt 0:01:46]} Rab8 {[%emt 0:02:49]} 24. Kh2 {[%emt 0:02:31]} b4 {[%emt 0:00:35]} 25. Ba4 {[%emt 0:00:58]} Bc8 {[%emt 0:06:00]} 26. Qe2 {[%emt 0:02:38]} f5 {[%emt 0:01:19]} 27. exf5 {[%emt 0:01:04]} Nxf5 {[%emt 0:05:23]} 28. Ne4 {[%emt 0:00:25]} Qc7 {[%emt 0:03:18]} 29. Bc6 {[%emt 0:01:43]} bxc3 {[%emt 0:03:08]} 30. bxc3 {[%emt 0:00:09]} Nfe7 {[%emt 0:01:25]} 31. Qxc4 {[%emt 0:02:14]} Bb7 {[%emt 0:00:06]} 32. Nfg5 {[%emt 0:12:35]} Bxc6 {[%emt 0:00:12]} 33. Ne6 {[%emt 0:00:01]} Qc8 {[%emt 0:00:07]} 34. Nxf8 {[%emt 0:00:28]} Bxd5 {[%emt 0:00:03]} 35. Qxc8 {[%emt 0:00:35]} Nxc8 {[%emt 0:00:05]} 36. Nxg6 {[%emt 0:00:56]} Bxe4 {[%emt 0:00:05]} 37. Nh4 {[%emt 0:00:03]} Rb2 {[%emt 0:00:05]} 38. Kg1 {[%emt 0:00:23]} Ne7 {[%emt 0:00:49]} 39. Ra4 {[%emt 0:00:37]} Bc6 {[%emt 0:02:11]} 40. Rb4 {[%emt 0:01:38]} Ra2 {[%emt 0:00:05]} 41. Rb6 {[%emt 0:01:44]} g5 {[%emt 0:02:13]} 42. Nf3 {[%emt 0:01:02]} h5 {[%emt 0:00:13]} 43. e4 {[%emt 0:00:54]} g4 {[%emt 0:00:06]} 44. hxg4 {[%emt 0:00:01]} hxg4 {[%emt 0:00:06]} 45. Nh2 {[%emt 0:00:12]} Rxa5 {[%emt 0:02:31]} 46. Nxg4 {[%emt 0:00:02]} Kf7 {[%emt 0:00:08]} 47. Rf1+ {[%emt 0:01:24]} Ke6 {[%emt 0:00:06]} 48. Rf6+ {[%emt 0:00:57]} Kd7 {[%emt 0:00:01]} 49. Rf7 {[%emt 0:00:28]} Bxe4 {[%emt 0:03:14]} 50. Nf6+ {[%emt 0:00:07]} Ke6 {[%emt 0:00:05]} 51. Rxe7+ {[%emt 0:00:04]} Kxf6 {[%emt 0:00:04]} 52. Rd7 {[%emt 0:00:15]} Ra2 {[%emt 0:00:39]} 53. Rbxd6+ {[%emt 0:00:14]} Kg5 {[%emt 0:00:06]} 54. Rd2 {[%emt 0:00:18]} Ra1+ {[%emt 0:00:45]} 55. Rd1 {[%emt 0:00:57]} Ra3 {[%emt 0:00:17]} 56. Re1 {[%emt 0:00:19]} Kf5 {[%emt 0:00:06]} 57. Rd2 {[%emt 0:00:16]} Bc6 {[%emt 0:00:19]} 58. Re3 {[%emt 0:02:05]} Kf4 {[%emt 0:01:05]} 59. Rh3 {[%emt 0:00:52]} a5 {[%emt 0:00:59]} 60. Rd6 {[%emt 0:00:49]} Bb7 {[%emt 0:01:12]} 61. Rb6 {[%emt 0:01:16]} Bd5 {[%emt 0:00:34]} 62. Rb5 {[%emt 0:00:30]} Be4 {[%emt 0:01:15]} 63. Rb2 {[%emt 0:00:31]} Bc6 {[%emt 0:00:58]} 64. Rf2+ {[%emt 0:00:16]} Ke4 {[%emt 0:00:31]} 65. g4 {[%emt 0:00:40]} Rb3 {[%emt 0:00:42]} 66. Kh2 {[%emt 0:00:32]} a4 {[%emt 0:00:39]} 67. c4 {[%emt 0:00:31]} Kd4 {[%emt 0:00:51]} 68. g5 {[%emt 0:00:30]} Rb1 {[%emt 0:00:25]} 69. Rh6 {[%emt 0:00:31]} Kc5 {[%emt 0:01:00]} 70. Re2 {[%emt 0:00:27]} e4 {[%emt 0:02:04]} 71. g6 {[%emt 0:00:32]} e3 {[%emt 0:00:04]} 72. Kg3 {[%emt 0:00:30]} Kd4 {[%emt 0:00:21]} 73. g7 {[%emt 0:00:28]} Kd3 {[%emt 0:02:38]} 74. Rg2 {[%emt 0:00:31]} e2 {[%emt 0:01:21]} 75. Rd6+ {[%emt 0:00:22]} Kc3 {[%emt 0:00:06]} 76. Rxe2 {[%emt 0:00:37]} Rg1+ {[%emt 0:00:24]} 77. Kf2 {[%emt 0:00:07]} 1-0

[Event "SixDays One Year GM-B 2023"]
[Site "Budapest"]
[Date "2023.09.18"]
[Round "1.2"]
[White "Lee, Jun Hyeok"]
[Black "Yeganegi, Barad"]
[Result "1/2-1/2"]
[ECO "C50"]
[WhiteElo "2378"]
[BlackElo "2261"]
[Annotator "ChessBase"]
[PlyCount "115"]
[EventDate "2023.09.18"]
[EventType "tourn"]
[EventCountry "HUN"]
[SourceTitle "playchess.com"]
[Source "ChessBase"]
[SourceQuality "1"]
[TimeControl "5400+30"]

1. e4 {[%emt 0:00:03]} e5 {[%emt 0:00:09]} 2. Nf3 {[%emt 0:00:10]} Nc6 {[%emt 0:00:05]} 3. Bc4 {[%emt 0:00:06]} Nf6 {[%emt 0:00:08]} 4. d3 {[%emt 0:00:08]} Bc5 {[%emt 0:00:06]} 5. Nc3 {[%emt 0:00:18]} O-O {[%emt 0:01:29]} 6. O-O {[%emt 0:00:44]} h6 {[%emt 0:03:48]} 7. h3 {[%emt 0:00:43]} d6 {[%emt 0:05:18]} 8. Na4 {[%emt 0:00:55]} Bb6 {[%emt 0:00:23]} 9. a3 {[%emt 0:00:51]} Be6 {[%emt 0:01:15]} 10. Bxe6 {[%emt 0:01:24]} fxe6 {[%emt 0:00:23]} 11. b4 {[%emt 0:00:56]} Nd4 12. Nh2 {[%emt 0:02:48]} Qe8 {[%emt 0:08:52]} 13. Nxb6 {[%emt 0:00:44]} axb6 {[%emt 0:00:10]} 14. c3 {[%emt 0:00:18]} Nc6 {[%emt 0:01:11]} 15. b5 {[%emt 0:11:22]} Ne7 {[%emt 0:05:11]} 16. c4 {[%emt 0:01:11]} Ng6 {[%emt 0:02:47]} 17. g3 {[%emt 0:01:59]} Qf7 {[%emt 0:13:14]} 18. Ra2 {[%emt 0:06:31]} Rad8 {[%emt 0:07:21]} 19. Qe2 {[%emt 0:07:39]} Ne7 {[%emt 0:03:20]} 20. Bd2 {[%emt 0:15:50]} Qh5 {[%emt 0:03:46]} 21. Qxh5 {[%emt 0:00:13]} Nxh5 {[%emt 0:00:05]} 22. a4 {[%emt 0:02:13]} Ra8 {[%emt 0:11:20]} 23. Rfa1 {[%emt 0:08:00]} Ra7 {[%emt 0:01:23]} 24. Ng4 {[%emt 0:05:13]} Kh7 {[%emt 0:01:08]} 25. Kg2 {[%emt 0:09:03]} Ng8 {[%emt 0:03:03]} 26. a5 {[%emt 0:02:15]} Rfa8 {[%emt 0:05:37]} 27. a6 {[%emt 0:01:37]} bxa6 {[%emt 0:00:16]} 28. Rxa6 {[%emt 0:00:23]} Rxa6 {[%emt 0:00:07]} 29. Rxa6 {[%emt 0:00:31]} Rd8 {[%emt 0:02:21]} 30. Ra7 {[%emt 0:02:07]} Rc8 {[%emt 0:08:48]} 31. f4 {[%emt 0:06:26]} exf4 {[%emt 0:03:21]} 32. gxf4 {[%emt 0:00:05]} Nhf6 {[%emt 0:01:19]} 33. Kf3 {[%emt 0:01:00]} Nd7 {[%emt 0:04:54]} 34. d4 {[%emt 0:00:51]} h5 {[%emt 0:00:24]} 35. Ne3 {[%emt 0:00:32]} Ngf6 {[%emt 0:01:03]} 36. e5 {[%emt 0:01:51]} dxe5 {[%emt 0:00:33]} 37. fxe5 {[%emt 0:00:18]} Ne8 {[%emt 0:00:48]} 38. Bc3 {[%emt 0:00:49]} Kg6 {[%emt 0:00:48]} 39. d5 {[%emt 0:00:26]} exd5 {[%emt 0:00:48]} 40. cxd5 {[%emt 0:01:04]} Nc5 {[%emt 0:00:37]} 41. Bd4 {[%emt 0:00:40]} Nb3 {[%emt 0:00:58]} 42. Ke4 {[%emt 0:02:06]} Kg5 {[%emt 0:00:30]} 43. Ra2 {[%emt 0:04:08]} Nf6+ {[%emt 0:02:04]} 44. exf6 {[%emt 0:01:36]} Re8+ {[%emt 0:00:04]} 45. Be5 {[%emt 0:02:11]} gxf6 {[%emt 0:00:03]} 46. Rg2+ {[%emt 0:00:47]} Kh6 {[%emt 0:00:05]} 47. Nf5+ {[%emt 0:01:08]} Kh7 {[%emt 0:00:03]} 48. Rg7+ {[%emt 0:00:19]} Kh8 {[%emt 0:00:06]} 49. Re7 {[%emt 0:00:45]} Rxe7 {[%emt 0:00:45]} 50. Nxe7 {[%emt 0:00:04]} fxe5 {[%emt 0:00:42]} 51. Kxe5 {[%emt 0:00:19]} Kg7 {[%emt 0:00:11]} 52. Nf5+ {[%emt 0:01:10]} Kf7 {[%emt 0:00:47]} 53. d6 {[%emt 0:00:45]} cxd6+ {[%emt 0:00:16]} 54. Nxd6+ {[%emt 0:00:10]} Kg6 {[%emt 0:00:07]} 55. h4 {[%emt 0:00:36]} Nd2 {[%emt 0:00:41]} 56. Nc8 {[%emt 0:01:09]} Nc4+ {[%emt 0:00:13]} 57. Kd4 {[%emt 0:00:48]} Na3 {[%emt 0:00:18]} 58. Nxb6 {[%emt 0:00:23]} 1/2-1/2

[Event "SixDays One Year GM-B 2023"]
[Site "Budapest"]
[Date "2023.09.18"]
[Round "1.3"]
[White "Velikanov, Alexander"]
[Black "Varga, Zoltan"]
[Result "1-0"]
[ECO "B03"]
[WhiteElo "2327"]
[BlackElo "2363"]
[Annotator "ChessBase"]
[PlyCount "55"]
[EventDate "2023.09.18"]
[EventType "tourn"]
[EventCountry "HUN"]
[SourceTitle "playchess.com"]
[Source "ChessBase"]
[SourceQuality "1"]
[TimeControl "5400+30"]

1. e4 {[%emt 0:00:03]} Nf6 {[%emt 0:08:30]} 2. e5 {[%emt 0:00:09]} Nd5 {[%emt 0:00:06]} 3. d4 {[%emt 0:00:11]} d6 {[%emt 0:00:40]} 4. c4 {[%emt 0:00:08]} Nb6 {[%emt 0:00:02]} 5. f4 {[%emt 0:00:05]} dxe5 {[%emt 0:00:53]} 6. fxe5 {[%emt 0:00:08]} Nc6 {[%emt 0:00:13]} 7. Be3 {[%emt 0:00:09]} Bf5 {[%emt 0:00:12]} 8. Nc3 {[%emt 0:00:07]} e6 {[%emt 0:00:03]} 9. Nf3 {[%emt 0:00:07]} Be7 {[%emt 0:00:18]} 10. Be2 {[%emt 0:00:06]} O-O {[%emt 0:00:10]} 11. O-O {[%emt 0:00:04]} f6 {[%emt 0:00:02]} 12. exf6 {[%emt 0:00:15]} Bxf6 {[%emt 0:00:03]} 13. Qd2 {[%emt 0:00:26]} Qe7 {[%emt 0:00:20]} 14. Rad1 {[%emt 0:00:11]} Rad8 {[%emt 0:01:07]} 15. Kh1 {[%emt 0:00:10]} Kh8 {[%emt 0:02:50]} 16. h3 {[%emt 0:00:12]} h6 {[%emt 0:02:36]} 17. Bg1 {[%emt 0:00:03]} Rd7 {[%emt 0:05:24]} 18. c5 {[%emt 0:03:44]} Nd5 {[%emt 0:01:19]} 19. Bb5 {[%emt 0:00:26]} Nxc3 {[%emt 0:06:01]} 20. bxc3 {[%emt 0:08:56]} Rdd8 {[%emt 0:07:40]} 21. Qe2 {[%emt 0:18:14]} Na5 {[%emt 0:05:55]} 22. Ne5 {[%emt 0:04:14]} Bh7 {[%emt 0:05:06]} 23. Bh2 {[%emt 0:03:58]} c6 {[%emt 0:03:33]} 24. Bd3 {[%emt 0:02:12]} Bxe5 {[%emt 0:00:05]} 25. Bxe5 {[%emt 0:01:42]} Rxf1+ {[%emt 0:02:17]} 26. Rxf1 {[%emt 0:00:28]} b5 {[%emt 0:01:09]} 27. Bd6 {[%emt 0:18:38]} Qd7 {[%emt 0:00:29]} 28. Qh5 {[%emt 0:07:08]} 1-0

[Event "SixDays One Year GM-B 2023"]
[Site "Budapest"]
[Date "2023.09.18"]
[Round "1.4"]
[White "Palczert, Matyas"]
[Black "Baum, Jonasz"]
[Result "1/2-1/2"]
[ECO "C58"]
[WhiteElo "2340"]
[BlackElo "2429"]
[Annotator "ChessBase"]
[PlyCount "78"]
[EventDate "2023.09.18"]
[EventType "tourn"]
[EventCountry "HUN"]
[SourceTitle "playchess.com"]
[Source "ChessBase"]
[SourceQuality "1"]
[TimeControl "5400+30"]

1. e4 {[%emt 0:00:03]} e5 {[%emt 0:00:05]} 2. Nf3 {[%emt 0:00:10]} Nc6 {[%emt 0:00:05]} 3. Bc4 {[%emt 0:00:12]} Nf6 {[%emt 0:00:06]} 4. Ng5 {[%emt 0:01:23]} d5 {[%emt 0:00:12]} 5. exd5 {[%emt 0:00:07]} Na5 {[%emt 0:00:03]} 6. Bb5+ {[%emt 0:00:18]} Bd7 {[%emt 0:00:05]} 7. Qe2 {[%emt 0:00:19]} Bd6 {[%emt 0:00:07]} 8. Bxd7+ {[%emt 0:04:50]} Qxd7 {[%emt 0:00:13]} 9. Nc3 {[%emt 0:00:14]} c6 {[%emt 0:00:20]} 10. Nge4 {[%emt 0:15:11]} Nxd5 {[%emt 0:06:33]} 11. Nxd6+ {[%emt 0:01:09]} Qxd6 {[%emt 0:00:05]} 12. d4 {[%emt 0:00:35]} Nxc3 {[%emt 0:05:04]} 13. bxc3 {[%emt 0:00:11]} O-O {[%emt 0:04:18]} 14. dxe5 {[%emt 0:00:49]} Qd5 {[%emt 0:07:40]} 15. O-O {[%emt 0:01:25]} Rfe8 {[%emt 0:00:27]} 16. Bf4 {[%emt 0:02:49]} Nc4 {[%emt 0:30:52]} 17. Rfe1 {[%emt 0:03:26]} Qe6 {[%emt 0:05:10]} 18. Bg3 {[%emt 0:05:04]} Rad8 {[%emt 0:00:31]} 19. Rad1 {[%emt 0:02:39]} b5 {[%emt 0:02:23]} 20. f4 {[%emt 0:02:44]} Nb2 {[%emt 0:02:29]} 21. Rxd8 {[%emt 0:02:32]} Rxd8 {[%emt 0:00:01]} 22. Bh4 {[%emt 0:04:51]} Re8 {[%emt 0:09:27]} 23. Qe4 {[%emt 0:02:10]} f5 {[%emt 0:01:18]} 24. Qd4 {[%emt 0:01:34]} a5 {[%emt 0:03:42]} 25. h3 {[%emt 0:03:12]} h6 {[%emt 0:01:47]} 26. Kh2 {[%emt 0:02:33]} a4 {[%emt 0:03:33]} 27. a3 {[%emt 0:02:42]} Nc4 {[%emt 0:00:54]} 28. Qc5 {[%emt 0:16:16]} Qd7 {[%emt 0:00:34]} 29. e6 {[%emt 0:01:57]} Rxe6 {[%emt 0:02:05]} 30. Qxf5 {[%emt 0:00:48]} Re7 {[%emt 0:00:45]} 31. Qc5 {[%emt 0:11:56]} Rxe1 {[%emt 0:00:13]} 32. Bxe1 {[%emt 0:00:06]} Qe6 {[%emt 0:07:02]} 33. Bf2 {[%emt 0:02:36]} Qe4 {[%emt 0:00:06]} 34. f5 {[%emt 0:00:48]} Qxc2 {[%emt 0:01:36]} 35. f6 {[%emt 0:02:05]} gxf6 {[%emt 0:00:25]} 36. Qxc6 {[%emt 0:03:31]} Qxf2 {[%emt 0:03:00]} 37. Qe8+ {[%emt 0:00:09]} Kg7 {[%emt 0:00:04]} 38. Qd7+ {[%emt 0:00:08]} Kg6 {[%emt 0:00:18]} 39. Qg4+ {[%emt 0:00:06]} Kf7 {[%emt 0:00:04]} 1/2-1/2

[Event "SixDays One Year GM-B 2023"]
[Site "Budapest"]
[Date "2023.09.18"]
[Round "1.5"]
[White "Siddharth, Jagadeesh"]
[Black "Fodor, Tamas Jr."]
[Result "1/2-1/2"]
[ECO "C48"]
[WhiteElo "2391"]
[BlackElo "2486"]
[Annotator "ChessBase"]
[PlyCount "142"]
[EventDate "2023.09.18"]
[EventType "tourn"]
[EventCountry "HUN"]
[SourceTitle "playchess.com"]
[Source "ChessBase"]
[SourceQuality "1"]
[TimeControl "5400+30"]

1. e4 {[%emt 0:00:26]} e5 {[%emt 0:00:23]} 2. Nf3 {[%emt 0:00:10]} Nc6 {[%emt 0:00:12]} 3. Nc3 {[%emt 0:00:49]} Nf6 {[%emt 0:00:20]} 4. Bb5 {[%emt 0:00:10]} d6 {[%emt 0:05:22]} 5. d4 {[%emt 0:00:43]} exd4 {[%emt 0:00:07]} 6. Nxd4 {[%emt 0:00:07]} Bd7 {[%emt 0:00:06]} 7. Bxc6 {[%emt 0:00:39]} bxc6 {[%emt 0:00:06]} 8. Qf3 {[%emt 0:00:05]} c5 {[%emt 0:08:06]} 9. Nf5 {[%emt 0:00:25]} Bxf5 {[%emt 0:03:55]} 10. exf5 {[%emt 0:08:34]} Rb8 {[%emt 0:02:48]} 11. b3 {[%emt 0:01:48]} Be7 {[%emt 0:00:29]} 12. Bb2 {[%emt 0:00:26]} d5 {[%emt 0:03:12]} 13. O-O {[%emt 0:09:01]} O-O {[%emt 0:03:07]} 14. Rad1 {[%emt 0:01:07]} c6 {[%emt 0:00:21]} 15. Na4 {[%emt 0:00:51]} c4 {[%emt 0:12:58]} 16. Be5 {[%emt 0:19:57]} Bd6 {[%emt 0:09:29]} 17. Bd4 {[%emt 0:01:08]} cxb3 {[%emt 0:02:57]} 18. cxb3 {[%emt 0:00:13]} Rb7 {[%emt 0:00:21]} 19. Rc1 {[%emt 0:04:25]} Rc7 {[%emt 0:02:00]} 20. Rfe1 {[%emt 0:01:14]} h6 {[%emt 0:07:33]} 21. Nc5 {[%emt 0:05:16]} Bxc5 {[%emt 0:06:50]} 22. Bxc5 {[%emt 0:02:12]} Re8 {[%emt 0:00:04]} 23. Rxe8+ {[%emt 0:00:09]} Qxe8 {[%emt 0:03:12]} 24. Qg3 {[%emt 0:01:06]} Rc8 {[%emt 0:01:08]} 25. Bxa7 {[%emt 0:06:34]} Qe4 {[%emt 0:03:02]} 26. Be3 {[%emt 0:04:11]} Kh7 {[%emt 0:04:30]} 27. Qf4 {[%emt 0:01:13]} Qd3 {[%emt 0:00:05]} 28. h3 {[%emt 0:01:15]} Ne4 {[%emt 0:01:31]} 29. Qe5 {[%emt 0:01:27]} c5 {[%emt 0:02:27]} 30. f6 {[%emt 0:08:21]} Nxf6 {[%emt 0:01:40]} 31. Bxc5 {[%emt 0:00:35]} Kg8 {[%emt 0:04:45]} 32. Qe3 {[%emt 0:02:01]} Qa6 {[%emt 0:00:05]} 33. Bd4 {[%emt 0:00:46]} Re8 {[%emt 0:06:21]} 34. Qg3 {[%emt 0:00:39]} Re4 {[%emt 0:00:39]} 35. Qb8+ {[%emt 0:02:40]} Kh7 {[%emt 0:00:43]} 36. Qb6 {[%emt 0:00:29]} Qxa2 {[%emt 0:04:23]} 37. Bxf6 {[%emt 0:04:51]} Re6 {[%emt 0:00:19]} 38. Rc6 {[%emt 0:00:33]} Rxf6 {[%emt 0:00:11]} 39. Rxf6 {[%emt 0:00:07]} Qa1+ {[%emt 0:00:02]} 40. Kh2 {[%emt 0:00:06]} gxf6 {[%emt 0:00:04]} 41. Qc7 {[%emt 0:01:14]} Kg7 {[%emt 0:00:37]} 42. Qg3+ {[%emt 0:00:09]} Kh8 {[%emt 0:01:37]} 43. Qd6 {[%emt 0:00:13]} Qd4 {[%emt 0:00:28]} 44. b4 {[%emt 0:00:34]} Qb2 {[%emt 0:02:36]} 45. Qf8+ {[%emt 0:02:59]} Kh7 {[%emt 0:00:04]} 46. Qxf7+ {[%emt 0:00:16]} Kh8 {[%emt 0:00:04]} 47. Qe8+ {[%emt 0:02:18]} Kg7 {[%emt 0:00:16]} 48. Qd7+ {[%emt 0:00:19]} Kf8 {[%emt 0:00:36]} 49. Qd8+ {[%emt 0:03:09]} Kg7 {[%emt 0:00:07]} 50. Qe7+ {[%emt 0:00:03]} Kg6 {[%emt 0:01:18]} 51. Qe8+ {[%emt 0:00:13]} Kg7 {[%emt 0:00:06]} 52. b5 {[%emt 0:00:17]} d4 {[%emt 0:00:10]} 53. Qe7+ {[%emt 0:01:23]} Kg6 {[%emt 0:00:08]} 54. Qe8+ {[%emt 0:01:28]} Kg7 {[%emt 0:00:04]} 55. f4 {[%emt 0:00:33]} Qb4 {[%emt 0:02:14]} 56. Qd7+ {[%emt 0:00:32]} Kg6 {[%emt 0:00:07]} 57. Qd5 {[%emt 0:01:40]} h5 {[%emt 0:00:22]} 58. h4 {[%emt 0:02:20]} Kh6 {[%emt 0:01:09]} 59. Qe6 {[%emt 0:01:17]} Kg7 {[%emt 0:00:11]} 60. b6 {[%emt 0:01:36]} d3 {[%emt 0:00:04]} 61. Qd7+ {[%emt 0:00:44]} Kh6 {[%emt 0:00:04]} 62. Qxd3 {[%emt 0:00:39]} Qxb6 {[%emt 0:00:04]} 63. Qg3 {[%emt 0:00:21]} Qe6 {[%emt 0:00:13]} 64. Qf3 {[%emt 0:00:14]} Qe1 {[%emt 0:00:41]} 65. Qg3 {[%emt 0:00:01]} Qe4 {[%emt 0:00:22]} 66. Qf2 {[%emt 0:00:35]} Kg6 {[%emt 0:01:02]} 67. Kg3 {[%emt 0:00:00]} Kf5 {[%emt 0:01:30]} 68. Qd2 {[%emt 0:00:16]} Kg6 {[%emt 0:00:08]} 69. Kf2 {[%emt 0:01:01]} Kf5 {[%emt 0:01:06]} 70. g3 {[%emt 0:00:10]} Kg4 {[%emt 0:01:08]} 71. Qd1+ {[%emt 0:00:01]} Kh3 {[%emt 0:00:08]} 1/2-1/2

[Event "SixDays One Year GM-B 2023"]
[Site "Budapest"]
[Date "2023.09.19"]
[Round "2.1"]
[White "Grover, Sahaj"]
[Black "Fodor, Tamas Jr."]
[Result "1/2-1/2"]
[ECO "C15"]
[WhiteElo "2488"]
[BlackElo "2486"]
[Annotator "ChessBase"]
[PlyCount "78"]
[EventDate "2023.09.18"]
[EventType "tourn"]
[EventCountry "HUN"]
[SourceTitle "playchess.com"]
[Source "ChessBase"]
[SourceQuality "1"]
[TimeControl "5400+30"]

1. e4 {[%emt 0:04:54]} e6 {[%emt 0:00:13]} 2. d4 {[%emt 0:00:05]} d5 {[%emt 0:00:04]} 3. Nc3 {[%emt 0:00:26]} Bb4 {[%emt 0:00:08]} 4. exd5 {[%emt 0:00:28]} exd5 {[%emt 0:00:06]} 5. Bd3 {[%emt 0:00:04]} Nc6 {[%emt 0:01:02]} 6. Nf3 {[%emt 0:00:06]} Nge7 {[%emt 0:02:20]} 7. O-O {[%emt 0:00:09]} Bg4 {[%emt 0:01:27]} 8. h3 {[%emt 0:00:18]} Bh5 {[%emt 0:01:08]} 9. a3 {[%emt 0:00:07]} Bd6 {[%emt 0:02:11]} 10. Re1 {[%emt 0:00:15]} Kf8 {[%emt 0:17:25]} 11. g4 {[%emt 0:14:13]} Bg6 {[%emt 0:00:05]} 12. Bxg6 {[%emt 0:00:06]} hxg6 {[%emt 0:00:19]} 13. Ng5 {[%emt 0:00:08]} Kg8 {[%emt 0:03:08]} 14. Qf3 {[%emt 0:05:10]} f6 {[%emt 0:10:47]} 15. Ne6 {[%emt 0:00:13]} Qd7 {[%emt 0:00:10]} 16. Kg2 g5 {[%emt 0:06:03]} 17. Nxd5 {[%emt 0:06:39]} Ng6 {[%emt 0:00:14]} 18. Qb3 {[%emt 0:09:22]} Kh7 {[%emt 0:08:31]} 19. Qd3 {[%emt 0:14:52]} Rae8 {[%emt 0:16:43]} 20. Qf5 {[%emt 0:17:02]} Rxe6 {[%emt 0:02:54]} 21. Qxe6 {[%emt 0:00:14]} Qxe6 {[%emt 0:00:16]} 22. Rxe6 {[%emt 0:00:07]} Nxd4 {[%emt 0:00:02]} 23. Re4 {[%emt 0:00:16]} Nxc2 {[%emt 0:00:04]} 24. Ra2 {[%emt 0:00:33]} c6 {[%emt 0:00:26]} 25. Nc3 {[%emt 0:01:30]} Be5 {[%emt 0:01:00]} 26. b4 {[%emt 0:05:53]} Nd4 {[%emt 0:01:50]} 27. Ne2 {[%emt 0:01:11]} Ne6 {[%emt 0:00:29]} 28. Bb2 {[%emt 0:07:46]} Ngf4+ {[%emt 0:02:03]} 29. Nxf4 {[%emt 0:00:09]} Nxf4+ {[%emt 0:00:06]} 30. Kf1 {[%emt 0:02:08]} Bd6 {[%emt 0:01:57]} 31. Bc1 {[%emt 0:01:00]} Nd5 {[%emt 0:00:08]} 32. Rd2 {[%emt 0:04:25]} Bf4 {[%emt 0:05:09]} 33. Rc2 {[%emt 0:00:36]} Bxc1 {[%emt 0:00:03]} 34. Rxc1 {[%emt 0:00:03]} Kg6 {[%emt 0:00:05]} 35. f3 {[%emt 0:03:19]} Rxh3 {[%emt 0:03:51]} 36. Kg2 {[%emt 0:00:05]} Rh8 {[%emt 0:00:03]} 37. Rh1 {[%emt 0:00:54]} Nf4+ {[%emt 0:00:26]} 38. Kg1 {[%emt 0:00:05]} Rd8 {[%emt 0:00:04]} 39. Re7 {[%emt 0:01:58]} Rd1+ {[%emt 0:05:36]} 1/2-1/2

[Event "SixDays One Year GM-B 2023"]
[Site "Budapest"]
[Date "2023.09.19"]
[Round "2.2"]
[White "Baum, Jonasz"]
[Black "Siddharth, Jagadeesh"]
[Result "0-1"]
[ECO "E94"]
[WhiteElo "2429"]
[BlackElo "2391"]
[Annotator "ChessBase"]
[PlyCount "120"]
[EventDate "2023.09.18"]
[EventType "tourn"]
[EventCountry "HUN"]
[SourceTitle "playchess.com"]
[Source "ChessBase"]
[SourceQuality "1"]
[TimeControl "5400+30"]

1. d4 {[%emt 0:00:02]} Nf6 {[%emt 0:12:42]} 2. c4 {[%emt 0:00:04]} d6 {[%emt 0:00:04]} 3. Nf3 {[%emt 0:00:13]} Nbd7 {[%emt 0:00:06]} 4. Nc3 {[%emt 0:00:05]} e5 {[%emt 0:00:06]} 5. e4 {[%emt 0:00:04]} g6 {[%emt 0:00:09]} 6. Be2 {[%emt 0:00:22]} Bg7 {[%emt 0:00:06]} 7. O-O {[%emt 0:00:06]} O-O {[%emt 0:00:05]} 8. Be3 {[%emt 0:00:40]} Qe7 {[%emt 0:00:09]} 9. Qc2 {[%emt 0:00:12]} c6 {[%emt 0:00:09]} 10. d5 {[%emt 0:00:12]} c5 {[%emt 0:00:07]} 11. Bg5 {[%emt 0:00:46]} h6 {[%emt 0:00:58]} 12. Bd2 {[%emt 0:01:29]} Nh7 {[%emt 0:04:06]} 13. Rae1 {[%emt 0:02:08]} Kh8 {[%emt 0:06:14]} 14. g3 {[%emt 0:08:10]} Ndf6 {[%emt 0:00:14]} 15. Kg2 {[%emt 0:01:24]} Ng8 {[%emt 0:05:05]} 16. Bd3 {[%emt 0:02:48]} h5 {[%emt 0:02:41]} 17. Qc1 {[%emt 0:00:39]} a6 {[%emt 0:08:40]} 18. a3 {[%emt 0:05:27]} Bd7 {[%emt 0:03:41]} 19. b4 {[%emt 0:08:36]} b6 {[%emt 0:05:26]} 20. h4 {[%emt 0:02:14]} Rfc8 {[%emt 0:03:13]} 21. bxc5 {[%emt 0:04:22]} bxc5 {[%emt 0:00:25]} 22. Ng1 {[%emt 0:09:46]} Rab8 {[%emt 0:05:28]} 23. Bc2 {[%emt 0:01:12]} Rb7 {[%emt 0:04:28]} 24. Nd1 {[%emt 0:09:32]} Rcb8 {[%emt 0:01:21]} 25. Bc3 {[%emt 0:01:14]} Bh6 {[%emt 0:02:22]} 26. Qa1 {[%emt 0:01:21]} Ngf6 {[%emt 0:02:42]} 27. f4 {[%emt 0:09:59]} Ng4 {[%emt 0:00:02]} 28. Nf2 {[%emt 0:07:30]} f6 {[%emt 0:01:15]} 29. Nd3 {[%emt 0:04:04]} Kg8 {[%emt 0:00:20]} 30. Nh3 {[%emt 0:00:59]} Qe8 {[%emt 0:10:31]} 31. a4 {[%emt 0:01:42]} Bg7 {[%emt 0:01:30]} 32. Nhf2 {[%emt 0:02:07]} Nf8 {[%emt 0:00:05]} 33. Nxg4 {[%emt 0:00:48]} Bxg4 {[%emt 0:00:53]} 34. f5 {[%emt 0:03:16]} gxf5 {[%emt 0:00:37]} 35. exf5 {[%emt 0:00:02]} Bh6 {[%emt 0:00:17]} 36. Nf2 {[%emt 0:00:42]} Rg7 {[%emt 0:00:01]} 37. Ne4 {[%emt 0:02:30]} Qe7 {[%emt 0:00:01]} 38. Ba5 {[%emt 0:03:54]} Kh8 {[%emt 0:02:27]} 39. Qc3 {[%emt 0:00:05]} Nh7 {[%emt 0:01:51]} 40. Rf2 {[%emt 0:01:52]} Qd7 {[%emt 0:03:16]} 41. Ref1 {[%emt 0:00:01]} Rbg8 {[%emt 0:00:28]} 42. Kh2 {[%emt 0:00:09]} Rb8 {[%emt 0:00:53]} 43. Qa3 {[%emt 0:02:41]} Rb7 {[%emt 0:03:27]} 44. Rb1 {[%emt 0:04:43]} Rxb1 45. Bxb1 Bd1 {[%emt 0:00:03]} 46. Nc3 {[%emt 0:00:11]} Bg4 {[%emt 0:00:15]} 47. Ne4 {[%emt 0:01:20]} Bd1 {[%emt 0:00:02]} 48. Qd3 {[%emt 0:00:51]} Bxa4 {[%emt 0:03:25]} 49. Ra2 {[%emt 0:00:30]} Rg4 {[%emt 0:00:02]} 50. Nxd6 {[%emt 0:01:44]} Qxd6 {[%emt 0:00:13]} 51. Rxa4 {[%emt 0:00:06]} e4 {[%emt 0:00:23]} 52. Qb3 {[%emt 0:00:35]} e3 {[%emt 0:03:06]} 53. Be1 {[%emt 0:00:01]} Bf4 {[%emt 0:00:01]} 54. Kh3 {[%emt 0:00:45]} Bxg3 {[%emt 0:00:42]} 55. Qxe3 {[%emt 0:00:02]} Rxh4+ {[%emt 0:01:33]} 56. Kg2 {[%emt 0:00:00]} Bxe1 {[%emt 0:00:07]} 57. Qe8+ {[%emt 0:00:43]} Nf8 {[%emt 0:00:02]} 58. Qxe1 {[%emt 0:00:09]} Qh2+ {[%emt 0:00:08]} 59. Kf3 {[%emt 0:00:07]} Rh3+ {[%emt 0:00:13]} 60. Ke4 {[%emt 0:00:11]} Qe5# {[%emt 0:00:05]} 0-1